fUSD/lending_fUSD_20250215
["ID","MTS","AMOUNT","RATE_DAILY","PERIOD"]
[353212641,1739655041112,-621.08,0.00010958,2]
[353212642,1739655041129,-1767.77,0.00010958,2]
[353212643,1739655041144,-500.0,0.00010958,2]
[353212644,1739655041161,-500.0,0.00010958,2]
[353212645,1739655041177,-1202.68,0.00010958,2]
[353212646,1739655041192,-500.0,0.00010958,2]
[353212647,1739655041207,-723.31,0.00010958,2]
[353212648,1739655041222,-1289.54,0.00010958,2]
[353212649,1739655041237,-965.21,0.00010958,2]
[353212650,1739655041253,-500.0,0.00010958,2]
[353212651,1739655041267,-500.0,0.00010958,2]
[353212652,1739655041282,-1393.81,0.00010958,2]
[353212653,1739655041297,-983.52,0.00010958,2]
[353212654,1739655041313,-500.0,0.00010958,2]
[353212655,1739655041328,-500.0,0.00010958,2]
[353212656,1739655041342,-500.0,0.00010958,2]
[353212657,1739655041357,-500.0,0.00010958,2]
[353212658,1739655041373,-500.0,0.00010958,2]
[353212659,1739655041387,-1066.2,0.00010958,2]
[353212660,1739655041402,-2226.92,0.00010958,2]
[353212661,1739655041418,-500.0,0.00010958,2]
[353212662,1739655041433,-500.0,0.00010958,2]
[353212663,1739655041448,-1103.09,0.00010958,2]
[353212664,1739655041463,-500.0,0.00010958,2]
[353212665,1739655041477,-500.0,0.00010958,2]
[353212666,1739655041493,-962.34,0.00010958,2]
[353212667,1739655041508,-500.0,0.00010958,2]
[353212668,1739655041524,-500.0,0.00010958,2]
[353212669,1739655041539,-500.0,0.00010958,2]
[353212670,1739655041554,-500.0,0.00010958,2]
[353212671,1739655041568,-292.04503719,0.00010958,2]
[353212673,1739655042278,-207.95496281,0.00010958,2]
[353212674,1739655042288,-704.7,0.00010958,2]
[353212675,1739655042297,-647.62,0.00010958,2]
[353212676,1739655042307,-500.0,0.00010958,2]
[353212677,1739655042316,-548.21003719,0.00010958,2]
[353212678,1739655042328,-489.09996281,0.00010958,2]
[353212679,1739655042338,-500.0,0.00010958,2]
[353212680,1739655042348,-500.0,0.00010958,2]
[353212681,1739655042357,-500.0,0.00010958,2]
[353212682,1739655042368,-1054.18,0.00010958,2]
[353212683,1739655042379,-207.85619096,0.00010958,2]
[353212684,1739655042388,-500.0,0.00010958,2]
[353212685,1739655042399,-500.0,0.00010958,2]
[353212686,1739655042408,-500.0,0.00010958,2]
[353212687,1739655042418,-500.0,0.00010958,2]
[353212688,1739655042427,-500.0,0.00010958,2]
[353212690,1739655042436,-500.0,0.00010958,2]
[353212693,1739655042445,-45.89383552,0.00010958,2]
[353212696,1739655042456,-153.49875096,0.00010958,2]
[353212700,1739655042466,-194.17966304,0.00010958,2]
[353212708,1739655042495,-492.23033696,0.00010958,2]
[353212711,1739655042504,-500.0,0.00010958,2]
[353212713,1739655042514,-365.43994614,0.00010958,2]
[353212715,1739655042525,-714.33005386,0.00010958,2]
[353212717,1739655042534,-500.0,0.00010958,2]
[353212719,1739655042543,-494.84,0.00010958,2]
[353212721,1739655042552,-37061.85359946,0.00010958,2]
[353212726,1739655042874,-448.14759547,0.00010958,2]
[353212727,1739655042892,-51.85240453,0.00010958,2]
[353212728,1739655042902,-500.0,0.00010958,2]
[353212729,1739655042911,-38900.28729519,0.00010958,2]
[353212730,1739655042921,-500.0,0.00010959,2]
[353212731,1739655042931,-2000.0,0.00010959,2]
[353212732,1739655042943,-200.0,0.00010959,2]
[353212733,1739655042953,-150.0,0.00010959,2]
[353212734,1739655042963,-443.56,0.00010972,2]
[353212735,1739655042973,-946.3549779,0.00010999,2]
[353212736,1739655042982,-300.08748301,0.00011,2]
[353212737,1739655042992,-869.22019706,0.00011,2]
[353212738,1739655043001,-150.0,0.00011014,2]
[353212739,1739655043011,-150.0,0.00011014,2]
[353212740,1739655043020,-250.0,0.00011019,2]
[353212741,1739655043029,-2243.4851198,0.00011029,2]
[353212742,1739655043039,-1821.0095996,0.00011029,2]
[353212743,1739655043052,-589.49870473,0.00011029,2]
[353212744,1739655043062,-1004.5839913,0.00011029,2]
[353212745,1739655043071,-6485.0830546,0.00011029,2]
[353212747,1739655043080,-1957.0619651,0.00011032,2]
[353212748,1739655043090,-589.41898642,0.00011032,2]
[353212749,1739655043102,-1081.21982398,0.00011032,2]
[353212750,1739655043112,-1384.2156556,0.00011032,2]
[353212751,1739655043122,-1589.9455384,0.00011032,2]
[353212752,1739655043133,-1358.8814772,0.00011032,2]
[353212753,1739655043144,-1127.8174161,0.00011032,2]
[353212754,1739655043154,-877.9035012,0.00011032,2]
[353212755,1739655043164,-751.223011,0.00011032,2]
[353212756,1739655043174,-624.5425208,0.00011032,2]
[353212757,1739655043183,-5667.2982728,0.00011032,2]
[353212758,1739655043194,-4849.513491,0.00011032,2]
[353212759,1739655043204,-4031.7287092,0.00011032,2]
[353212760,1739655043213,-300.0,0.00011037,2]
[353212761,1739655043223,-303.49264907,0.00011038,2]
[353212762,1739655043233,-443.90021445,0.00011039,2]
[353212763,1739655043243,-1518.0,0.0001104,2]
[353212764,1739655043253,-13628.89241247,0.0001104,2]
[353212765,1739655043264,-525.27040299,0.0001104,2]
[353212766,1739655043309,-518.72365054,0.0001104,2]
[353212767,1739655043343,-682.08066031,0.0001104,2]
[353212768,1739655043407,-1406.51246176,0.0001104,2]
[353212769,1739655043434,-30400.66008251,0.0001104,2]
[353212770,1739655043445,-280.86100001,0.0001104,2]
[353212771,1739655043456,-2134.71715263,0.0001104,2]
[353212772,1739655043468,-754.72951032,0.0001104,2]
[353212773,1739655043480,-4026.8,0.0001104,2]
[353212774,1739655043633,-34940.26146743,0.0001104,2]
[353212775,1739655043966,-9048.38243378,0.0001104,2]
[353212783,1739655045391,-1024.15,0.00010105,2]
[353212785,1739655504487,504.76409119,0.0002,120]
[353212786,1739655652714,874.53,8.219e-05,2]
[353212797,1739656231726,-250.0,9.411e-05,2]
[353212798,1739656231736,-5861.32,9.411e-05,2]
[353212799,1739656231745,-200.0,9.416e-05,2]
[353212800,1739656231755,-419.15,9.432e-05,2]
[353212801,1739656231765,-1135.63,9.626e-05,2]
[353212802,1739656231774,-301.1,9.68e-05,2]
[353212803,1739656231784,-5670.70415835,9.718e-05,2]
[353212804,1739656231793,-23900.0,9.718e-05,2]
[353212805,1739656231803,-181.23863571,9.718e-05,2]
[353212806,1739656231812,-476.23,9.83e-05,2]
[353212807,1739656231822,-150.0,9.863e-05,2]
[353212808,1739656231831,-500.0,9.867e-05,2]
[353212809,1739656231840,-704.77,9.896e-05,2]
[353212810,1739656231850,-150.0,9.912e-05,2]
[353212811,1739656231859,-150.0,9.912e-05,2]
[353212812,1739656231868,-150.0,9.912e-05,2]
[353212813,1739656231878,-150.0,9.912e-05,2]
[353212814,1739656231887,-150.0,9.933e-05,2]
[353212815,1739656231896,-2000.0,9.937e-05,2]
[353212816,1739656231905,-758.76,9.95e-05,2]
[353212817,1739656231915,-150.0,9.954e-05,2]
[353212818,1739656231924,-150.0,9.975e-05,2]
[353212819,1739656231933,-184.51,9.978e-05,2]
[353212820,1739656231943,-150.0,9.995e-05,2]
[353212821,1739656231952,-150.0,0.00010004,2]
[353212822,1739656231962,-159.17,0.00010005,2]
[353212823,1739656231972,-150.0,0.00010016,2]
[353212824,1739656231981,-150.0,0.00010035,2]
[353212825,1739656231990,-150.0,0.00010037,2]
[353212826,1739656231999,-150.0,0.00010058,2]
[353212827,1739656232008,-700.0,0.00010058,2]
[353212828,1739656232018,-500.0,0.00010058,2]
[353212829,1739656232028,-1000.0,0.00010066,2]
[353212830,1739656232038,-150.0,0.00010078,2]
[353212831,1739656232050,-150.0,0.00010078,2]
[353212832,1739656232060,-150.0,0.00010079,2]
[353212833,1739656232070,-150.0,0.00010096,2]
[353212835,1739656232079,-150.0,0.00010099,2]
[353212837,1739656232088,-150.0,0.0001012,2]
[353212839,1739656232098,-257.97,0.00010137,2]
[353212841,1739656232107,-150.0,0.00010141,2]
[353212843,1739656232117,-2313.43,0.00010157,2]
[353212845,1739656232127,-150.0,0.00010157,2]
[353212847,1739656232137,-150.0,0.00010162,2]
[353212848,1739656232147,-150.0,0.00010182,2]
[353212850,1739656232156,-150.0,0.00010188,2]
[353212852,1739656232166,-150.0,0.00010203,2]
[353212854,1739656232175,-150.0,0.00010224,2]
[353212856,1739656232185,-150.0,0.00010245,2]
[353212858,1739656232195,-181.23863571,0.00010249,2]
[353212861,1739656232205,-150.0,0.00010266,2]
[353212862,1739656232214,-150.0,0.00010279,2]
[353212864,1739656232223,-150.0,0.00010279,2]
[353212866,1739656232233,-150.0,0.00010286,2]
[353212868,1739656232243,-150.0,0.00010307,2]
[353212869,1739656232252,-150.0,0.00010328,2]
[353212871,1739656232262,-150.0,0.00010349,2]
[353212873,1739656232271,-150.0,0.0001037,2]
[353212875,1739656232281,-150.0,0.00010371,2]
[353212877,1739656232290,-150.0,0.00010375,2]
[353212879,1739656232300,-150.0,0.0001039,2]
[353212881,1739656232310,-150.0,0.00010402,2]
[353212883,1739656232319,-150.0,0.00010411,2]
[353212885,1739656232328,-150.0,0.00010432,2]
[353212887,1739656232337,-166.69,0.00010449,2]
[353212889,1739656232347,-150.0,0.00010453,2]
[353212891,1739656232356,-150.0,0.00010463,2]
[353212893,1739656232366,-874.53,0.00010466,2]
[353212895,1739656232375,-150.0,0.00010473,2]
[353212897,1739656232385,-150.0,0.00010478,2]
[353212899,1739656232394,-150.0,0.00010494,2]
[353212901,1739656232403,-150.0,0.00010515,2]
[353212903,1739656232413,-150.0,0.00010524,2]
[353212905,1739656232422,-150.0,0.00010536,2]
[353212907,1739656232431,-150.0,0.00010555,2]
[353212909,1739656232440,-150.0,0.00010557,2]
[353212911,1739656232451,-150.0,0.00010577,2]
[353212913,1739656232460,-150.0,0.00010589,2]
[353212915,1739656232468,-150.0,0.00010589,2]
[353212916,1739656232478,-150.0,0.00010598,2]
[353212918,1739656232488,-150.0,0.00010619,2]
[353212920,1739656232497,-150.0,0.0001064,2]
[353212922,1739656232507,-150.0,0.00010647,2]
[353212924,1739656232516,-150.0,0.00010647,2]
[353212926,1739656232525,-150.0,0.0001066,2]
[353212928,1739656232535,-150.0,0.00010681,2]
[353212930,1739656232545,-150.0,0.00010702,2]
[353212932,1739656232556,-150.0,0.00010723,2]
[353212934,1739656232568,-150.0,0.00010738,2]
[353212936,1739656232578,-150.0,0.00010744,2]
[353212938,1739656232587,-150.0,0.00010764,2]
[353212940,1739656232597,-150.0,0.00010769,2]
[353212942,1739656232606,-150.0,0.00010785,2]
[353212944,1739656232615,-150.0,0.00010806,2]
[353212946,1739656232624,-150.0,0.00010827,2]
[353212948,1739656232635,-150.0,0.0001083,2]
[353212950,1739656232645,-150.0,0.00010847,2]
[353212952,1739656232654,-150.0,0.00010868,2]
[353212954,1739656232664,-150.0,0.00010889,2]
[353212956,1739656232674,-150.0,0.00010891,2]
[353212958,1739656232683,-6098.40010325,0.000109,2]
[353212960,1739656232693,-150.0,0.0001091,2]
[353212962,1739656232702,-150.0,0.00010922,2]
[353212964,1739656232711,-150.0,0.00010931,2]
[353212966,1739656232721,-158.92334666,0.0001094,2]
[353212968,1739656232730,-150.0,0.00010951,2]
[353212970,1739656232739,-3383.346,0.00010957,2]
[353212972,1739656232748,-173.448,0.00010957,2]
[353212974,1739656232758,-260.74,0.00010958,2]
[353212976,1739656232767,-500.0,0.00010958,2]
[353212978,1739656232777,-500.0,0.00010958,2]
[353212980,1739656232787,-500.0,0.00010958,2]
[353212982,1739656232798,-500.0,0.00010958,2]
[353212984,1739656232807,-500.0,0.00010958,2]
[353212986,1739656232817,-500.0,0.00010958,2]
[353212988,1739656232826,-500.0,0.00010958,2]
[353212990,1739656232836,-500.0,0.00010958,2]
[353212992,1739656232845,-500.0,0.00010958,2]
[353212994,1739656232855,-500.0,0.00010958,2]
[353212996,1739656232863,-500.0,0.00010958,2]
[353212998,1739656232872,-500.0,0.00010958,2]
[353212999,1739656232882,-500.0,0.00010958,2]
[353213001,1739656232891,-500.0,0.00010958,2]
[353213002,1739656232901,-500.0,0.00010958,2]
[353213003,1739656232911,-500.0,0.00010958,2]
[353213004,1739656232920,-523.88285067,0.00010958,2]
[353213005,1739656232930,-500.0,0.00010958,2]
[353213006,1739656232939,-500.0,0.00010958,2]
[353213007,1739656232949,-523.30382917,0.00010958,2]
[353213008,1739656232958,-500.0,0.00010958,2]
[353213009,1739656232967,-500.0,0.00010958,2]
[353213010,1739656232977,-500.0,0.00010958,2]
[353213011,1739656232986,-500.0,0.00010958,2]
[353213012,1739656232995,-500.0,0.00010958,2]
[353213013,1739656233005,-500.0,0.00010958,2]
[353213014,1739656233014,-342.22507066,0.00010958,2]
[353213015,1739656233024,-500.0,0.00010958,2]
[353213016,1739656233033,-500.0,0.00010958,2]
[353213017,1739656233043,-500.0,0.00010958,2]
[353213018,1739656233053,-500.0,0.00010958,2]
[353213019,1739656233064,-500.0,0.00010958,2]
[353213020,1739656233074,-500.0,0.00010958,2]
[353213021,1739656233084,-500.0,0.00010958,2]
[353213022,1739656233094,-500.0,0.00010958,2]
[353213023,1739656233103,-500.0,0.00010958,2]
[353213024,1739656233113,-500.0,0.00010958,2]
[353213025,1739656233123,-500.0,0.00010958,2]
[353213026,1739656233132,-500.0,0.00010958,2]
[353213027,1739656233143,-313.10881798,0.00010958,2]
[353213028,1739656233153,-500.0,0.00010958,2]
[353213029,1739656233163,-500.0,0.00010958,2]
[353213030,1739656233172,-500.0,0.00010958,2]
[353213031,1739656233182,-500.0,0.00010958,2]
[353213032,1739656233191,-500.0,0.00010958,2]
[353213033,1739656233200,-500.0,0.00010958,2]
[353213034,1739656233210,-500.0,0.00010958,2]
[353213035,1739656233220,-500.0,0.00010958,2]
[353213036,1739656233229,-500.0,0.00010958,2]
[353213037,1739656233239,-500.0,0.00010958,2]
[353213038,1739656233248,-500.0,0.00010958,2]
[353213039,1739656233258,-500.0,0.00010958,2]
[353213040,1739656233267,-500.0,0.00010958,2]
[353213041,1739656233278,-505.55278684,0.00010958,2]
[353213042,1739656233288,-500.0,0.00010958,2]
[353213043,1739656233298,-500.0,0.00010958,2]
[353213044,1739656233307,-500.0,0.00010958,2]
[353213045,1739656233317,-500.0,0.00010958,2]
[353213046,1739656233326,-500.0,0.00010958,2]
[353213047,1739656233336,-536.64,0.00010958,2]
[353213048,1739656233346,-500.0,0.00010958,2]
[353213049,1739656233355,-95.9113231,0.00010958,2]
[353213050,1739656233387,-404.0886769,0.00010958,2]
[353213051,1739656233398,-500.0,0.00010958,2]
[353213052,1739656233407,-176.90992639,0.00010958,2]
[353213053,1739656233587,-323.09007361,0.00010958,2]
[353213054,1739656233597,-500.0,0.00010958,2]
[353213055,1739656233608,-584.53,0.00010958,2]
[353213056,1739656233617,-500.0,0.00010958,2]
[353213057,1739656233627,-500.0,0.00010958,2]
[353213058,1739656233637,-500.0,0.00010958,2]
[353213059,1739656233648,-500.0,0.00010958,2]
[353213060,1739656233658,-406.68016292,0.00010958,2]
[353213061,1739656233667,-500.0,0.00010958,2]
[353213062,1739656233677,-500.0,0.00010958,2]
[353213063,1739656233687,-500.0,0.00010958,2]
[353213064,1739656233697,-500.0,0.00010958,2]
[353213065,1739656233707,-500.0,0.00010958,2]
[353213066,1739656233716,-500.0,0.00010958,2]
[353213067,1739656233725,-500.0,0.00010958,2]
[353213068,1739656233735,-500.0,0.00010958,2]
[353213069,1739656233745,-500.0,0.00010958,2]
[353213070,1739656233754,-500.0,0.00010958,2]
[353213071,1739656233763,-1376.064278,0.00010958,2]
[353213072,1739656233772,-500.0,0.00010958,2]
[353213073,1739656233782,-679.82,0.00010958,2]
[353213074,1739656233791,-500.0,0.00010958,2]
[353213075,1739656233800,-500.0,0.00010958,2]
[353213076,1739656233810,-500.0,0.00010958,2]
[353213077,1739656233819,-500.0,0.00010958,2]
[353213078,1739656233829,-500.0,0.00010958,2]
[353213079,1739656233839,-500.0,0.00010958,2]
[353213080,1739656233848,-500.0,0.00010958,2]
[353213081,1739656233858,-500.0,0.00010958,2]
[353213082,1739656233868,-500.0,0.00010958,2]
[353213083,1739656233877,-500.0,0.00010958,2]
[353213084,1739656233886,-500.0,0.00010958,2]
[353213085,1739656233895,-500.0,0.00010958,2]
[353213086,1739656233904,-500.0,0.00010958,2]
[353213087,1739656233914,-986.15729,0.00010958,2]
[353213088,1739656233923,-500.0,0.00010958,2]
[353213089,1739656233932,-489.78659009,0.00010958,2]
[353213090,1739656233941,-500.0,0.00010958,2]
[353213091,1739656233950,-502.77166775,0.00010958,2]
[353213092,1739656233959,-500.0,0.00010958,2]
[353213093,1739656233969,-500.0,0.00010958,2]
[353213094,1739656233978,-500.0,0.00010958,2]
[353213095,1739656233988,-500.0,0.00010958,2]
[353213096,1739656233997,-807.29,0.00010958,2]
[353213097,1739656234007,-500.0,0.00010958,2]
[353213098,1739656234017,-500.0,0.00010958,2]
[353213099,1739656234026,-500.0,0.00010958,2]
[353213100,1739656234035,-500.0,0.00010958,2]
[353213101,1739656234044,-500.0,0.00010958,2]
[353213102,1739656234055,-500.0,0.00010958,2]
[353213103,1739656234064,-538.87,0.00010958,2]
[353213104,1739656234073,-262.96296273,0.00010958,2]
[353213105,1739656234444,-298.70703727,0.00010958,2]
[353213106,1739656234454,-500.0,0.00010958,2]
[353213107,1739656234463,-633.48,0.00010958,2]
[353213108,1739656234473,-500.0,0.00010958,2]
[353213109,1739656234482,-666.43,0.00010958,2]
[353213110,1739656234491,-500.0,0.00010958,2]
[353213111,1739656234500,-500.0,0.00010958,2]
[353213112,1739656234510,-1037.02,0.00010958,2]
[353213113,1739656234520,-500.0,0.00010958,2]
[353213114,1739656234530,-500.0,0.00010958,2]
[353213115,1739656234539,-692.88,0.00010958,2]
[353213116,1739656234548,-500.0,0.00010958,2]
[353213117,1739656234559,-500.0,0.00010958,2]
[353213118,1739656234571,-500.0,0.00010958,2]
[353213119,1739656234581,-500.0,0.00010958,2]
[353213120,1739656234591,-500.0,0.00010958,2]
[353213121,1739656234600,-500.0,0.00010958,2]
[353213122,1739656234610,-752.23,0.00010958,2]
[353213123,1739656234619,-500.0,0.00010958,2]
[353213124,1739656234629,-503.39,0.00010958,2]
[353213125,1739656234638,-500.0,0.00010958,2]
[353213126,1739656234647,-500.0,0.00010958,2]
[353213127,1739656234657,-500.0,0.00010958,2]
[353213128,1739656234666,-830.74,0.00010958,2]
[353213129,1739656234676,-500.0,0.00010958,2]
[353213130,1739656234685,-500.0,0.00010958,2]
[353213131,1739656234695,-694.27,0.00010958,2]
[353213132,1739656234704,-500.0,0.00010958,2]
[353213133,1739656234713,-500.0,0.00010958,2]
[353213134,1739656234722,-500.0,0.00010958,2]
[353213135,1739656234732,-500.0,0.00010958,2]
[353213136,1739656234741,-500.0,0.00010958,2]
[353213137,1739656234750,-500.0,0.00010958,2]
[353213138,1739656234759,-500.0,0.00010958,2]
[353213139,1739656234768,-503.60552066,0.00010958,2]
[353213140,1739656234778,-500.0,0.00010958,2]
[353213141,1739656234787,-500.0,0.00010958,2]
[353213142,1739656234796,-500.0,0.00010958,2]
[353213143,1739656234805,-620.15,0.00010958,2]
[353213144,1739656234815,-500.0,0.00010958,2]
[353213145,1739656234824,-500.0,0.00010958,2]
[353213146,1739656234834,-500.0,0.00010958,2]
[353213147,1739656234843,-500.0,0.00010958,2]
[353213148,1739656234853,-500.0,0.00010958,2]
[353213149,1739656234863,-500.0,0.00010958,2]
[353213150,1739656234872,-500.0,0.00010958,2]
[353213151,1739656234881,-500.0,0.00010958,2]
[353213152,1739656234890,-500.0,0.00010958,2]
[353213153,1739656234899,-1020.67,0.00010958,2]
[353213154,1739656234908,-500.0,0.00010958,2]
[353213155,1739656234917,-500.0,0.00010958,2]
[353213156,1739656234927,-500.0,0.00010958,2]
[353213157,1739656234936,-500.0,0.00010958,2]
[353213158,1739656234946,-500.0,0.00010958,2]
[353213159,1739656234955,-580.68,0.00010958,2]
[353213160,1739656234965,-500.0,0.00010958,2]
[353213161,1739656234974,-805.25,0.00010958,2]
[353213162,1739656234984,-500.0,0.00010958,2]
[353213163,1739656234993,-500.0,0.00010958,2]
[353213164,1739656235003,-500.0,0.00010958,2]
[353213165,1739656235014,-500.0,0.00010958,2]
[353213166,1739656235023,-656.68,0.00010958,2]
[353213167,1739656235033,-650.67,0.00010958,2]
[353213168,1739656235044,-500.0,0.00010958,2]
[353213169,1739656235056,-500.0,0.00010958,2]
[353213170,1739656235065,-204.29584674,0.00010958,2]
[353213171,1739656235079,-295.70415326,0.00010958,2]
[353213172,1739656235089,-204.29584674,0.00010958,2]
[353213175,1739656237695,-295.70415326,0.00010958,2]
[353213176,1739656237705,-500.0,0.00010958,2]
[353213177,1739656237715,-500.0,0.00010958,2]
[353213178,1739656237724,-500.0,0.00010958,2]
[353213179,1739656237734,-645.54,0.00010958,2]
[353213180,1739656237743,-500.0,0.00010958,2]
[353213181,1739656237753,-1018.03,0.00010958,2]
[353213182,1739656237762,-500.0,0.00010958,2]
[353213183,1739656237772,-500.0,0.00010958,2]
[353213184,1739656237782,-500.0,0.00010958,2]
[353213185,1739656237791,-863.94,0.00010958,2]
[353213186,1739656237801,-500.0,0.00010958,2]
[353213187,1739656237810,-500.0,0.00010958,2]
[353213188,1739656237820,-554.89,0.00010958,2]
[353213189,1739656237829,-807.07,0.00010958,2]
[353213190,1739656237838,-500.0,0.00010958,2]
[353213191,1739656237847,-633.1,0.00010958,2]
[353213192,1739656237857,-500.0,0.00010958,2]
[353213193,1739656237867,-937.84,0.00010958,2]
[353213194,1739656237877,-500.0,0.00010958,2]
[353213195,1739656237886,-500.0,0.00010958,2]
[353213196,1739656237896,-500.0,0.00010958,2]
[353213197,1739656237906,-612.15,0.00010958,2]
[353213198,1739656237915,-500.0,0.00010958,2]
[353213199,1739656237925,-500.0,0.00010958,2]
[353213200,1739656237934,-500.0,0.00010958,2]
[353213201,1739656237944,-500.0,0.00010958,2]
[353213202,1739656237953,-568.61,0.00010958,2]
[353213203,1739656237962,-500.0,0.00010958,2]
[353213204,1739656237973,-287.8985795,0.00010958,2]
[353213214,1739656238067,-212.1014205,0.00010958,2]
[353213216,1739656238076,-787.8985795,0.00010958,2]
[353213259,1739656239717,-351.7814205,0.00010958,2]
[353213260,1739656239727,-500.0,0.00010958,2]
[353213261,1739656239736,-500.0,0.00010958,2]
[353213262,1739656239745,-500.0,0.00010958,2]
[353213263,1739656239754,-500.0,0.00010958,2]
[353213264,1739656239764,-778.68,0.00010958,2]
[353213265,1739656239913,-500.0,0.00010958,2]
[353213266,1739656239923,-703.93,0.00010958,2]
[353213267,1739656239932,-497.5085795,0.00010958,2]
[353213268,1739656239951,-386.0914205,0.00010958,2]
[353213269,1739656239960,-169.80530747,0.00010958,2]
[353213270,1739656239971,-330.19469253,0.00010958,2]
[353213271,1739656239980,-402.34204777,0.00010958,2]
[353213272,1739656239989,-500.0,0.00010958,2]
[353213273,1739656239999,-500.0,0.00010958,2]
[353213274,1739656240008,-500.0,0.00010958,2]
[353213275,1739656240018,-591.82,0.00010958,2]
[353213276,1739656240027,-695.19,0.00010958,2]
[353213277,1739656240036,-500.0,0.00010958,2]
[353213278,1739656240045,-500.0,0.00010958,2]
[353213279,1739656240054,-500.0,0.00010958,2]
[353213280,1739656240064,-500.0,0.00010958,2]
[353213281,1739656240073,-500.0,0.00010958,2]
[353213282,1739656240082,-500.0,0.00010958,2]
[353213283,1739656240091,-500.0,0.00010958,2]
[353213284,1739656240100,-500.0,0.00010958,2]
[353213285,1739656240109,-702.32,0.00010958,2]
[353213286,1739656240119,-833.1,0.00010958,2]
[353213287,1739656240129,-358.23760493,0.00010958,2]
[353213288,1739656240142,-141.76239507,0.00010958,2]
[353213289,1739656240151,-500.0,0.00010958,2]
[353213290,1739656240160,-500.0,0.00010958,2]
[353213291,1739656240170,-806.72,0.00010958,2]
[353213292,1739656240179,-500.0,0.00010958,2]
[353213293,1739656240188,-500.0,0.00010958,2]
[353213294,1739656240198,-500.0,0.00010958,2]
[353213295,1739656240207,-500.0,0.00010958,2]
[353213296,1739656240216,-500.0,0.00010958,2]
[353213297,1739656240226,-580.01,0.00010958,2]
[353213298,1739656240235,-500.0,0.00010958,2]
[353213299,1739656240245,-500.0,0.00010958,2]
[353213300,1739656240254,-538.13,0.00010958,2]
[353213301,1739656240263,-500.0,0.00010958,2]
[353213302,1739656240272,-508.16,0.00010958,2]
[353213303,1739656240281,-801.86,0.00010958,2]
[353213304,1739656240291,-543.14,0.00010958,2]
[353213305,1739656240300,-1067.49,0.00010958,2]
[353213306,1739656240310,-500.0,0.00010958,2]
[353213307,1739656240320,-500.0,0.00010958,2]
[353213308,1739656240329,-500.0,0.00010958,2]
[353213309,1739656240339,-500.0,0.00010958,2]
[353213310,1739656240349,-500.0,0.00010958,2]
[353213311,1739656240359,-507.7,0.00010958,2]
[353213312,1739656240368,-536.63,0.00010958,2]
[353213313,1739656240378,-611.41,0.00010958,2]
[353213314,1739656240387,-706.5,0.00010958,2]
[353213315,1739656240397,-556.32,0.00010958,2]
[353213316,1739656240406,-500.0,0.00010958,2]
[353213317,1739656240415,-500.0,0.00010958,2]
[353213318,1739656240425,-500.0,0.00010958,2]
[353213319,1739656240434,-310.70257419,0.00010958,2]
[353213320,1739656240446,-127.89324588,0.00010958,2]
[353213321,1739656240456,-534.54,0.00010958,2]
[353213322,1739656240465,-500.0,0.00010958,2]